bitfinex/quotes_BTCUSD_20230109
["timestamp","ask_amount","ask_price","bid_price","bid_amount"]
[1673284777772,0.00481957,17369.0,17367.0,0.937594]
[1673284778058,0.00481957,17369.0,17367.0,0.67261334]
[1673284778059,0.17001957,17369.0,17367.0,0.67261334]
[1673284778326,0.63716421,17370.0,17368.0,0.09680934]
[1673284778567,0.63716421,17370.0,17367.0,0.48291532]
[1673284778568,0.48588753,17369.0,17367.0,0.48291532]
[1673284778822,0.3621,17368.0,17366.0,0.118]
[1673284779070,0.566,17368.0,17367.0,0.25]
[1673284779319,1.52439,17368.0,17367.0,0.07959946]
[1673284779627,1.52439,17368.0,17366.0,0.693835]
[1673284779628,0.7621,17368.0,17366.0,0.693835]
[1673284779826,0.40008997,17368.0,17366.0,1.519672]
[1673284780067,0.4,17368.0,17366.0,0.825837]
[1673284780328,0.4,17368.0,17366.0,1.801674]
[1673284780595,0.82452046,17369.0,17366.0,1.801674]
[1673284780824,0.17263293,17370.0,17367.0,0.68901731]
[1673284781083,0.61014877,17371.0,17368.0,1.59324146]
[1673284781084,0.00614018,17371.0,17368.0,1.59324146]
[1673284781338,0.00614018,17371.0,17370.0,0.4]
[1673284781583,0.00614018,17371.0,17370.0,1.99306446]
[1673284781846,0.00614018,17371.0,17370.0,1.913465]
[1673284782186,0.00614018,17371.0,17370.0,1.908465]
[1673284782601,0.00614018,17371.0,17370.0,2.158465]
[1673284782852,0.00614018,17371.0,17370.0,1.763465]
[1673284783101,0.00614018,17371.0,17370.0,1.40141]
[1673284783355,1.28516129,17371.0,17370.0,0.25006]
[1673284783595,1.69951764,17371.0,17370.0,0.25006]
[1673284783855,1.99960761,17371.0,17370.0,0.25006]
[1673284784109,2.18074054,17371.0,17370.0,0.25006]
[1673284784361,2.18074054,17371.0,17370.0,0.29806]
[1673284784362,2.41841843,17371.0,17370.0,0.29806]
[1673284784623,2.41841843,17371.0,17367.0,0.04762048]
[1673284784624,0.20076564,17369.0,17367.0,0.04762048]
[1673284784865,0.69288997,17368.0,17367.0,0.04762048]
[1673284785103,0.69288997,17368.0,17365.0,1.73862411]
[1673284785372,0.1655,17366.0,17365.0,2.18619601]
[1673284785629,0.40246786,17368.0,17365.0,2.18619601]
[1673284785879,0.16478997,17368.0,17365.0,2.13862411]
[1673284786133,0.47916564,17369.0,17366.0,0.52052287]
[1673284786134,0.36516564,17369.0,17366.0,0.52052287]
[1673284786377,0.36516564,17369.0,17367.0,1.51713275]
[1673284786619,0.36516564,17369.0,17367.0,1.59673221]
[1673284786861,0.36516564,17369.0,17368.0,0.00055945]
[1673284787109,0.36516564,17369.0,17367.0,1.11713275]
[1673284787383,0.36516564,17369.0,17367.0,1.10713275]
[1673284788351,0.36509904,17369.0,17368.0,0.94659602]
[1673284788607,0.36509904,17369.0,17368.0,1.52236702]
[1673284788892,0.36509904,17369.0,17368.0,2.09813802]
[1673284788893,0.20069904,17369.0,17368.0,2.09813802]
[1673284789129,0.20069904,17369.0,17368.0,2.54039693]
[1673284789382,0.20069904,17369.0,17368.0,2.46079747]
[1673284789874,0.20069904,17369.0,17368.0,2.62669747]
[1673284791386,0.20069904,17369.0,17368.0,2.46023802]
[1673284791627,0.20069904,17369.0,17368.0,2.60123802]
[1673284793646,0.20069904,17369.0,17368.0,2.46023802]
[1673284793891,0.20069904,17369.0,17368.0,2.59923802]
[1673284794143,0.20069904,17369.0,17368.0,2.46023802]
[1673284794399,0.20069904,17369.0,17368.0,2.76383802]
[1673284794915,0.20069904,17369.0,17368.0,3.33960902]
[1673284795490,0.20069904,17369.0,17368.0,3.42300643]
[1673284795744,0.20069904,17369.0,17368.0,3.88730643]
[1673284795988,0.20069904,17369.0,17368.0,4.72641926]
[1673284796236,0.20069904,17369.0,17368.0,4.67281926]
[1673284796482,0.20069904,17369.0,17368.0,4.37221558]
[1673284796964,0.20069904,17369.0,17368.0,9.37221558]
[1673284797204,0.20069904,17369.0,17368.0,9.51121558]
[1673284797462,0.20069904,17369.0,17368.0,9.51177503]
[1673284797718,0.20069904,17369.0,17368.0,9.37277503]
[1673284797948,0.20069904,17369.0,17368.0,9.51177503]
[1673284799663,0.20069904,17369.0,17368.0,9.36045814]
[1673284799905,0.20078901,17369.0,17368.0,8.73050894]
[1673284800154,0.20069904,17369.0,17368.0,8.89105795]
[1673284800392,0.20069904,17369.0,17368.0,9.05695795]
[1673284800885,0.20069904,17369.0,17368.0,9.19495795]
[1673284801189,0.20069904,17369.0,17368.0,9.05695795]
[1673284801409,0.20069904,17369.0,17368.0,9.49495795]
[1673284801654,0.20069904,17369.0,17368.0,9.19495795]
[1673284801916,0.20069904,17369.0,17368.0,9.19115395]
[1673284802447,0.20069904,17369.0,17368.0,9.49115395]
[1673284802933,0.20069904,17369.0,17368.0,9.19115395]
[1673284803186,0.20069904,17369.0,17368.0,9.65715395]
[1673284803457,0.20069904,17369.0,17368.0,9.6577134]
[1673284803666,0.20069904,17369.0,17368.0,11.2577134]
[1673284803921,0.20069904,17369.0,17368.0,11.6126161]
[1673284804432,0.00614018,17371.0,17369.0,0.24284305]
[1673284804703,0.43174791,17375.0,17369.0,0.24284305]
[1673284804704,0.5637297,17377.0,17372.0,0.14868989]
[1673284804938,0.10979249,17379.0,17374.0,0.1659]
[1673284805198,0.4,17378.0,17375.0,2.07365252]
[1673284805441,0.02487284,17379.0,17376.0,1.38591913]
[1673284805698,0.02487284,17379.0,17377.0,1.01228146]
[1673284805948,0.02487284,17379.0,17377.0,0.65507246]
[1673284806203,0.01987284,17379.0,17377.0,1.22554546]
[1673284806453,0.01472083,17379.0,17377.0,1.22554546]
[1673284806723,0.4,17381.0,17376.0,0.575481]
[1673284806724,0.01458122,17378.0,17376.0,0.575481]
[1673284806986,0.30902122,17378.0,17377.0,0.39]
[1673284807227,1.11862334,17378.0,17377.0,0.39]
[1673284807481,1.40012122,17378.0,17377.0,0.14]
[1673284807740,1.40871119,17378.0,17377.0,0.25]
[1673284807997,1.40962122,17378.0,17377.0,0.389]
[1673284808261,0.94978122,17378.0,17375.0,0.4]
[1673284808507,0.58768122,17378.0,17377.0,0.25]
[1673284808763,0.57918122,17378.0,17377.0,0.25]
[1673284809013,1.10728122,17378.0,17375.0,0.575519]
[1673284809270,0.81825911,17378.0,17377.0,0.39]
[1673284809517,0.81825911,17378.0,17374.0,0.62452941]
[1673284809518,1.27338122,17378.0,17374.0,0.62452941]
[1673284809819,1.81277083,17378.0,17377.0,0.14]
[1673284810022,1.99191119,17378.0,17377.0,0.14]
[1673284810276,2.15791119,17378.0,17374.0,0.04898541]
[1673284810554,0.166,17376.0,17375.0,0.139]
[1673284810789,0.6929,17376.0,17374.0,1.60012541]
[1673284811037,0.166,17375.0,17374.0,1.60012541]
[1673284811298,0.166,17375.0,17374.0,1.45012541]
[1673284811556,0.166,17375.0,17374.0,1.40114]
[1673284811824,0.1648,17376.0,17374.0,1.40114]
[1673284812075,0.1648,17376.0,17375.0,0.01370742]
[1673284812365,0.1824346,17377.0,17375.0,0.58924642]
[1673284812569,0.1824346,17377.0,17375.0,1.56478542]
[1673284812811,0.1824346,17377.0,17375.0,1.81478542]
[1673284813072,0.1824346,17377.0,17375.0,1.41478542]
[1673284813337,0.33591576,17376.0,17375.0,0.26370742]
[1673284813624,0.69801576,17376.0,17375.0,0.26370742]
[1673284813829,0.39327513,17376.0,17375.0,0.40370742]
[1673284814078,0.55877513,17376.0,17375.0,0.40370742]
[1673284814351,0.92087513,17376.0,17375.0,0.26370742]
[1673284814593,1.32087513,17376.0,17375.0,0.26370742]
[1673284814855,1.3209651,17376.0,17375.0,5.26370742]
[1673284815100,0.9588651,17376.0,17375.0,5.26370742]
[1673284815623,0.80824513,17376.0,17375.0,5.40370742]
[1673284815867,0.35938576,17376.0,17375.0,5.40376742]
[1673284816366,0.35938576,17376.0,17375.0,5.40432664]
[1673284817455,0.3315,17376.0,17375.0,5.40432664]
[1673284818135,0.3315,17376.0,17375.0,5.40376742]
[1673284818381,0.1655,17376.0,17375.0,5.26376742]
[1673284818624,0.1655,17376.0,17375.0,5.40276742]
[1673284818861,0.77216198,17376.0,17375.0,5.40276742]
[1673284819104,1.07225195,17376.0,17375.0,5.40276742]
[1673284819347,1.05371349,17376.0,17375.0,5.40276742]
[1673284820067,1.62921949,17376.0,17375.0,5.40276742]
[1673284820310,1.41581349,17376.0,17375.0,5.40276742]
[1673284820807,1.62921949,17376.0,17375.0,5.40276742]
[1673284821064,1.40892952,17376.0,17375.0,5.40332664]
[1673284821306,1.10392952,17376.0,17375.0,5.40276742]
[1673284821557,0.52842352,17376.0,17375.0,5.40276742]
[1673284821801,0.52842352,17376.0,17375.0,5.40270742]
[1673284822283,1.97952549,17376.0,17375.0,5.40270742]
[1673284822548,2.40192276,17376.0,17375.0,5.40270742]
[1673284823558,2.15099892,17376.0,17375.0,5.40270742]
[1673284824297,0.12842352,17376.0,17375.0,5.40270742]
[1673284824789,0.70392952,17376.0,17375.0,5.40270742]
[1673284825078,0.685506,17376.0,17375.0,5.40270742]
[1673284825842,1.7325754,17376.0,17375.0,5.40270742]
[1673284826090,1.4325754,17376.0,17375.0,5.40270742]
[1673284826336,1.4275754,17376.0,17375.0,5.40270742]
[1673284827075,1.99389582,17376.0,17375.0,5.40270742]
[1673284827326,2.46063451,17376.0,17375.0,5.26370742]
[1673284827568,2.28944738,17376.0,17375.0,5.40270742]
[1673284827812,2.63462535,17376.0,17375.0,5.26370742]
[1673284828061,3.21013135,17376.0,17375.0,5.26370742]
[1673284828306,3.45526221,17376.0,17375.0,5.40270742]
[1673284828558,3.31313726,17376.0,17375.0,4.26889165]
[1673284828815,3.67523726,17376.0,17375.0,4.26889165]
[1673284829069,3.31313726,17376.0,17375.0,4.26889165]
[1673284829323,3.83507277,17376.0,17375.0,4.26889165]
[1673284829584,4.32373745,17376.0,17375.0,4.26889165]
[1673284829840,4.84174509,17376.0,17375.0,4.26889165]
[1673284830091,5.44864509,17376.0,17375.0,4.12989165]
[1673284830342,5.50850532,17376.0,17375.0,2.90817985]
[1673284830589,5.50550532,17376.0,17375.0,2.76917985]
[1673284830838,5.50650532,17376.0,17375.0,2.76917985]
[1673284831083,5.50550532,17376.0,17375.0,2.76917985]
[1673284831348,5.50550532,17376.0,17375.0,2.77217985]
[1673284831349,5.53650532,17376.0,17375.0,2.77217985]
[1673284831603,5.50550532,17376.0,17375.0,2.76917985]
[1673284831866,5.50650532,17376.0,17375.0,2.76917985]
[1673284832123,4.95893361,17376.0,17375.0,2.76917985]
[1673284832660,3.23380917,17376.0,17375.0,2.84433853]
[1673284832899,3.34339801,17376.0,17375.0,2.76917985]
[1673284833156,2.98129801,17376.0,17375.0,2.76917985]
[1673284833385,3.34339801,17376.0,17375.0,2.76917985]
[1673284833627,3.27162161,17376.0,17375.0,2.76917985]
[1673284833880,2.91552161,17376.0,17375.0,2.76917985]
[1673284834126,2.84103277,17376.0,17375.0,2.76917985]
[1673284834363,2.84303277,17376.0,17375.0,2.90817985]
[1673284834612,3.14303277,17376.0,17375.0,2.90817985]
[1673284835101,3.35643877,17376.0,17375.0,2.90817985]
[1673284835336,3.71653877,17376.0,17375.0,2.76917985]
[1673284835576,3.35643877,17376.0,17375.0,2.90817985]
[1673284835824,3.71853877,17376.0,17375.0,2.90817985]
[1673284836089,3.87999361,17376.0,17375.0,2.90817985]
[1673284836337,3.88008358,17376.0,17375.0,2.90817985]
[1673284836592,3.36332274,17376.0,17375.0,2.90817985]
[1673284836826,3.87808358,17376.0,17375.0,2.76917985]
[1673284837132,2.85959314,17376.0,17375.0,2.90917985]
[1673284837611,2.49749314,17376.0,17375.0,2.90917985]
[1673284837860,2.85959314,17376.0,17375.0,2.90917985]
[1673284838845,2.49749314,17376.0,17375.0,2.90917985]
[1673284839090,3.29018657,17376.0,17375.0,2.90917985]
[1673284839376,3.40633141,17376.0,17375.0,2.90917985]
[1673284839632,3.76843141,17376.0,17375.0,2.90917985]
[1673284839930,3.76843121,17376.0,17375.0,2.90917985]
[1673284840138,3.40633121,17376.0,17375.0,2.90917985]
[1673284840396,2.4983466,17376.0,17375.0,2.90917985]
[1673284840639,1.91091358,17376.0,17375.0,2.90917985]
[1673284840885,0.60481366,17376.0,17375.0,2.90917985]
[1673284841398,0.43057364,17376.0,17375.0,2.76917985]
[1673284841651,0.43057364,17376.0,17375.0,2.90917985]
[1673284841888,0.43057364,17376.0,17375.0,2.76917985]
[1673284842147,0.43057364,17376.0,17375.0,2.91917985]
[1673284842881,0.91718641,17376.0,17375.0,2.91917985]
[1673284843125,0.91719908,17376.0,17375.0,2.91917985]
[1673284843378,1.08942643,17376.0,17375.0,2.91917985]
[1673284843628,1.92001966,17376.0,17375.0,2.91917985]
[1673284843877,1.66176283,17376.0,17375.0,2.77917985]
[1673284844119,1.85163229,17376.0,17375.0,2.91817985]
[1673284844370,1.85163229,17376.0,17375.0,2.77917985]
[1673284844874,2.42713829,17376.0,17375.0,2.91817985]
[1673284845117,2.42713707,17376.0,17375.0,3.05717985]
[1673284845357,2.23726883,17376.0,17375.0,3.05717985]
[1673284846096,1.80416709,17376.0,17375.0,3.05717985]
[1673284846339,1.58953837,17376.0,17375.0,3.05717985]
[1673284846607,1.58962834,17376.0,17375.0,3.05717985]
[1673284847146,2.33726883,17376.0,17375.0,3.05717985]
[1673284848116,2.37967933,17376.0,17375.0,3.05717985]
[1673284848361,2.33726883,17376.0,17375.0,3.05717985]
[1673284848601,2.3796793,17376.0,17375.0,3.05717985]
[1673284848851,2.37958933,17376.0,17375.0,3.05717985]
[1673284849349,2.03512247,17376.0,17375.0,3.05717985]
[1673284849583,2.37984059,17376.0,17375.0,3.05717985]
[1673284849843,2.37984069,17376.0,17375.0,3.05717985]
[1673284851077,2.18003524,17376.0,17375.0,3.05717985]
[1673284851356,2.54213524,17376.0,17375.0,3.05710072]
[1673284851853,2.97310598,17376.0,17375.0,3.05710072]
[1673284852097,2.54213524,17376.0,17375.0,3.05710072]
[1673284852369,2.97321715,17376.0,17375.0,3.05710072]
[1673284852866,3.11773121,17376.0,17375.0,3.05710072]
[1673284853120,3.11764124,17376.0,17375.0,3.05710072]
[1673284853617,3.54873585,17376.0,17375.0,3.05710072]
[1673284854119,3.11764124,17376.0,17375.0,3.05710072]
[1673284854616,3.11764124,17376.0,17375.0,2.77910072]
[1673284854617,3.11773121,17376.0,17375.0,2.77910072]
[1673284855096,3.11773121,17376.0,17375.0,2.76910072]
[1673284855358,3.11773121,17376.0,17375.0,2.90810072]
[1673284855624,3.11773121,17376.0,17375.0,3.04710072]
[1673284856378,3.63449205,17376.0,17375.0,3.04710072]
[1673284857125,3.11773121,17376.0,17375.0,3.04710072]
[1673284857375,3.63449205,17376.0,17375.0,3.04710072]
[1673284857620,3.05898605,17376.0,17375.0,3.04710072]
[1673284858142,3.63449205,17376.0,17375.0,3.04710072]
[1673284858377,2.54222521,17376.0,17375.0,3.04710072]
[1673284859624,3.05898605,17376.0,17375.0,3.04710072]
[1673284860927,2.14213524,17376.0,17375.0,3.04710072]
[1673284861197,2.65889608,17376.0,17375.0,3.04710072]
[1673284861419,2.65889608,17376.0,17375.0,3.04437672]
[1673284861901,2.08339008,17376.0,17375.0,3.04437672]
[1673284862147,1.56662924,17376.0,17375.0,3.04437672]
[1673284862394,2.08339008,17376.0,17375.0,3.04437672]
[1673284862653,2.48339008,17376.0,17375.0,3.04437672]
[1673284862889,3.05889608,17376.0,17375.0,3.04437672]
[1673284863646,3.63440208,17376.0,17375.0,3.04437672]
[1673284864381,3.63449205,17376.0,17375.0,3.04437672]
[1673284864628,3.74746823,17376.0,17375.0,3.04493594]
[1673284864902,1.03050204,17376.0,17375.0,3.72343238]
[1673284865137,0.49589266,17376.0,17375.0,3.64883292]
[1673284865392,0.71220709,17376.0,17375.0,3.64883292]
[1673284865650,0.27247974,17376.0,17375.0,4.59651038]
[1673284865899,0.1,17376.0,17375.0,3.73293292]
[1673284866167,0.1,17376.0,17375.0,4.44747192]
[1673284866439,0.1,17376.0,17375.0,4.30847192]
[1673284866682,0.1,17376.0,17375.0,4.94161898]
[1673284866923,0.1,17376.0,17375.0,4.80266624]
[1673284867160,0.1,17376.0,17375.0,4.30847192]
[1673284867898,0.1,17376.0,17375.0,4.44647192]
[1673284868392,0.1,17376.0,17375.0,4.55697192]
[1673284868893,0.1,17376.0,17375.0,5.05116557]
[1673284869149,0.1,17376.0,17375.0,5.05111659]
[1673284869391,0.17247974,17379.0,17376.0,0.99162088]
[1673284869635,0.17247974,17379.0,17377.0,0.357052]
[1673284869883,0.17247974,17379.0,17378.0,0.76203]
[1673284870161,0.17247974,17380.0,17378.0,0.76203]
[1673284870455,0.43120464,17381.0,17379.0,0.357009]
[1673284870706,0.89936841,17384.0,17381.0,0.4]
[1673284870946,0.38187684,17384.0,17382.0,0.07459946]
[1673284871190,0.59720935,17385.0,17382.0,0.07459946]
[1673284871427,0.761916,17384.0,17383.0,0.07459946]
[1673284871669,0.761916,17384.0,17381.0,0.4]
[1673284871670,0.74200597,17384.0,17382.0,0.07459946]
[1673284871908,0.741916,17384.0,17381.0,0.44795101]
[1673284872147,0.361916,17383.0,17381.0,0.44795101]
[1673284872386,0.42197935,17385.0,17382.0,0.29894]
[1673284872631,0.52761314,17385.0,17382.0,0.07459946]
[1673284872871,0.361916,17384.0,17382.0,0.139]
[1673284873115,0.12761314,17385.0,17381.0,0.68091702]
[1673284873116,0.361916,17383.0,17381.0,0.68091702]
[1673284873369,0.0215999,17382.0,17381.0,0.68091702]
[1673284873871,0.0215999,17382.0,17381.0,0.63296601]
[1673284875107,0.0215999,17382.0,17381.0,0.77196601]
[1673284875365,0.0215999,17382.0,17381.0,0.6174579]
[1673284875629,0.0215999,17382.0,17381.0,0.7564579]
[1673284875897,0.0215999,17382.0,17381.0,0.6174579]
[1673284876125,0.0215999,17382.0,17381.0,0.7554579]
[1673284876126,0.05375989,17382.0,17381.0,0.7554579]
[1673284876371,0.05375989,17382.0,17381.0,0.6174579]
[1673284876626,0.0215999,17382.0,17381.0,0.6174579]
[1673284877928,0.0215999,17382.0,17381.0,0.7564579]
[1673284878175,0.0115333,17382.0,17381.0,0.6174579]
[1673284878423,0.0115333,17382.0,17381.0,0.7564579]
[1673284879195,0.0115333,17382.0,17381.0,1.1183739]
[1673284879720,0.0115333,17382.0,17381.0,0.9793739]
[1673284879974,0.0115333,17382.0,17381.0,0.6175179]
[1673284880709,0.0115333,17382.0,17381.0,1.1184339]
[1673284880952,0.0115333,17382.0,17381.0,0.6175179]
[1673284881199,0.0115333,17382.0,17381.0,0.7565179]
[1673284881452,0.0115333,17382.0,17381.0,1.1184339]
[1673284881696,0.0115333,17382.0,17381.0,0.7565179]
[1673284881929,0.0115333,17382.0,17381.0,0.6175179]
[1673284882428,0.24930116,17382.0,17381.0,0.13806]
[1673284882675,0.69846939,17382.0,17381.0,0.13806]
[1673284882924,0.70687942,17382.0,17381.0,0.13806]
[1673284883178,0.70687942,17382.0,17381.0,0.138]
[1673284883448,0.68203927,17382.0,17380.0,6e-05]
[1673284883694,0.761916,17381.0,17380.0,6e-05]
[1673284884212,0.4,17381.0,17380.0,6e-05]
[1673284884458,0.76200597,17381.0,17380.0,6e-05]
[1673284884706,0.91011993,17381.0,17380.0,0.13806]
[1673284884954,0.361916,17381.0,17380.0,2.90443672]
[1673284885204,0.7200333,17382.0,17380.0,2.90443672]
[1673284885699,0.0200333,17382.0,17380.0,2.90443672]
[1673284885957,0.0200333,17382.0,17380.0,3.44713418]
[1673284886735,0.0115333,17382.0,17381.0,0.51220391]
[1673284887014,0.0115333,17382.0,17381.0,0.51276294]
[1673284887245,0.0115333,17382.0,17381.0,0.91276294]
[1673284887741,0.0115333,17382.0,17381.0,1.27467894]
[1673284887987,0.0115333,17382.0,17381.0,1.05176294]
[1673284888237,0.0115333,17382.0,17381.0,0.91276294]
[1673284888733,0.0115333,17382.0,17381.0,1.05076294]
[1673284889237,0.01143377,17382.0,17381.0,1.05076294]
[1673284889723,0.01143377,17382.0,17381.0,0.91276294]
[1673284890456,0.01143377,17382.0,17381.0,1.3492784]
[1673284890701,0.01143377,17382.0,17381.0,1.27467894]
[1673284890938,0.01143377,17382.0,17381.0,1.41267894]
[1673284891183,0.01143377,17382.0,17381.0,1.05076294]
[1673284891423,0.01143377,17382.0,17381.0,1.18876294]
[1673284891675,0.01143377,17382.0,17381.0,1.18820391]
[1673284892412,0.01143377,17382.0,17381.0,1.76354391]
[1673284892728,0.01143377,17382.0,17381.0,2.12545991]
[1673284893471,0.01143377,17382.0,17381.0,1.18820391]
[1673284893699,0.01152374,17382.0,17381.0,0.276]
[1673284893940,0.01143377,17382.0,17381.0,0.276]
[1673284894188,0.01143377,17382.0,17380.0,3.34782584]
[1673284894440,0.01143377,17382.0,17381.0,0.138]
[1673284894695,0.01143377,17382.0,17380.0,3.34782584]
[1673284894962,0.01143377,17382.0,17381.0,0.138]
[1673284895205,0.01143377,17382.0,17381.0,0.53855903]
[1673284895928,0.01143377,17382.0,17381.0,0.40055903]
[1673284896418,0.01152374,17382.0,17380.0,2.76643672]
[1673284896663,0.361916,17381.0,17380.0,2.76643672]
[1673284896915,0.33595,17381.0,17380.0,2.76643672]
[1673284897403,0.63595,17381.0,17380.0,2.76643672]
[1673284897667,0.997866,17381.0,17380.0,2.76643672]
[1673284897933,1.108066,17381.0,17380.0,2.76643672]
[1673284898181,1.52054924,17381.0,17380.0,2.90443672]
[1673284898441,2.68541963,17381.0,17380.0,2.90443672]
[1673284898700,3.22512367,17381.0,17380.0,2.90443672]
[1673284898952,3.34456984,17381.0,17380.0,2.76643672]
[1673284899205,3.11482367,17381.0,17380.0,2.90443672]
[1673284899460,3.11482367,17381.0,17380.0,2.76643672]
[1673284899461,2.47051083,17381.0,17380.0,2.76643672]
[1673284899705,2.1269544,17381.0,17380.0,2.90543672]
[1673284899958,2.7022944,17381.0,17380.0,2.90543672]
[1673284900211,2.1269544,17381.0,17380.0,2.90543672]
[1673284900699,0.370416,17381.0,17380.0,2.90543672]
[1673284900941,0.0085,17381.0,17380.0,2.90543672]
[1673284901971,0.3085,17381.0,17380.0,2.90543672]
[1673284902686,0.48034856,17381.0,17380.0,2.90543672]
[1673284902931,0.84226456,17381.0,17380.0,2.90543672]
[1673284903178,0.370416,17381.0,17380.0,2.90543672]
[1673284903426,0.0085,17381.0,17380.0,2.90543672]
[1673284904177,0.00858997,17381.0,17380.0,2.76637672]
[1673284904407,0.0085,17381.0,17380.0,2.76637672]
[1673284904673,0.670416,17381.0,17380.0,2.76637672]
[1673284904905,0.79977401,17381.0,17380.0,2.76637672]
[1673284905148,0.43794798,17381.0,17380.0,2.90537672]
[1673284905396,0.73785801,17381.0,17380.0,2.90537672]
[1673284905636,1.09977401,17381.0,17380.0,2.90537672]
[1673284905892,1.10012733,17381.0,17380.0,2.90537672]
[1673284906395,1.44368376,17381.0,17380.0,2.76637672]
[1673284906639,1.27148188,17381.0,17380.0,2.90537672]
[1673284907374,1.27157185,17381.0,17380.0,2.90537672]
[1673284908374,1.27148188,17381.0,17380.0,2.90537672]
[1673284908602,1.44343324,17381.0,17380.0,2.90537672]
[1673284909121,1.7018455,17381.0,17380.0,2.90537672]
[1673284909365,0.1722663,17381.0,17380.0,3.60074101]
[1673284909622,0.44211233,17382.0,17380.0,3.60074101]
[1673284909867,0.18370007,17382.0,17380.0,3.36174101]
[1673284910113,0.18370007,17382.0,17380.0,3.49974101]
[1673284910114,0.56362529,17382.0,17380.0,3.49974101]
[1673284910372,0.56362529,17382.0,17380.0,3.36174101]
[1673284910623,0.1722663,17381.0,17380.0,3.36174101]
[1673284910881,0.1672663,17381.0,17380.0,3.36174101]
[1673284911400,0.1672663,17381.0,17380.0,3.49974101]
[1673284911657,0.1672663,17381.0,17380.0,3.36174101]
[1673284911905,0.26984603,17382.0,17381.0,0.57083785]
[1673284912158,0.27834603,17382.0,17381.0,0.57083785]
[1673284912409,0.01993377,17382.0,17381.0,0.57083785]
[1673284912666,0.01993377,17382.0,17381.0,0.97083785]
[1673284913480,0.01993377,17382.0,17381.0,1.10983785]
[1673284914504,0.08212402,17382.0,17381.0,1.10983785]
[1673284914758,0.01143377,17382.0,17381.0,1.10983785]
[1673284916230,0.01143377,17382.0,17381.0,0.97083785]
[1673284916482,0.01143377,17382.0,17381.0,1.10883785]
[1673284917253,0.01143377,17382.0,17381.0,1.68423785]
[1673284917762,0.01143377,17382.0,17381.0,0.97089785]
[1673284918022,0.01143377,17382.0,17381.0,1.10889785]
[1673284919064,0.2969206,17382.0,17381.0,0.70889785]
[1673284919319,0.65874663,17382.0,17381.0,0.70889785]
[1673284919852,0.26984603,17382.0,17381.0,1.10889785]
[1673284920090,0.01143377,17382.0,17381.0,1.10889785]
[1673284920608,0.26984603,17382.0,17381.0,0.97089785]
[1673284920861,0.269936,17382.0,17381.0,1.10889785]
[1673284921130,0.01143377,17382.0,17381.0,1.10889785]
[1673284921385,0.18370267,17382.0,17381.0,1.10889785]
[1673284921658,0.01143377,17382.0,17381.0,1.10889785]
[1673284922388,0.01143377,17382.0,17381.0,0.97139688]
[1673284922886,0.01143377,17382.0,17381.0,0.97083785]
[1673284923631,0.01143377,17382.0,17381.0,1.10883785]
[1673284924639,0.01143377,17382.0,17381.0,1.68417785]
[1673284925651,0.01143377,17382.0,17381.0,2.36901785]
[1673284925911,0.01143377,17382.0,17381.0,2.73093385]
[1673284926158,0.01143377,17382.0,17381.0,3.30627385]
[1673284926403,0.01143377,17382.0,17381.0,3.16827385]
[1673284927178,0.01143377,17382.0,17381.0,3.30627385]
[1673284927430,0.01143377,17382.0,17381.0,2.73093385]
[1673284927689,0.01143377,17382.0,17381.0,2.36901785]
[1673284928721,0.01143377,17382.0,17381.0,0.538]
[1673284928722,0.24920163,17382.0,17381.0,0.538]
[1673284928959,0.24920163,17382.0,17381.0,0.138]
[1673284928960,0.05358082,17382.0,17381.0,0.138]
[1673284930238,0.22584972,17382.0,17381.0,0.138]
[1673284930552,0.05358082,17382.0,17381.0,0.138]
[1673284931034,0.22584972,17382.0,17381.0,0.138]
[1673284932087,0.84617798,17382.0,17381.0,0.13793768]
[1673284932351,1.31746551,17382.0,17381.0,0.13793768]
[1673284932606,2.00245544,17382.0,17381.0,0.13793768]
[1673284932862,1.65889901,17382.0,17381.0,0.13793768]
[1673284933861,2.23420601,17382.0,17381.0,0.13793768]
[1673284934112,1.9143452,17382.0,17381.0,0.13793768]
[1673284934359,2.61381009,17382.0,17381.0,0.13793768]
[1673284934622,3.18911709,17382.0,17381.0,0.13793768]
[1673284934884,1.26212701,17382.0,17381.0,0.13793768]
[1673284935134,1.1567756,17382.0,17381.0,0.13793768]
[1673284935393,0.54552742,17382.0,17381.0,0.13793768]
[1673284935654,0.80381035,17382.0,17381.0,0.13793768]
[1673284935908,0.96168397,17382.0,17381.0,0.13793768]
[1673284936152,1.30618116,17382.0,17381.0,0.13793768]
[1673284936407,0.97603992,17382.0,17381.0,0.13793768]
[1673284936678,0.54553174,17382.0,17381.0,0.13793768]
[1673284936930,0.80381467,17382.0,17381.0,0.13793768]
[1673284937183,0.80381467,17382.0,17381.0,0.8431367]
[1673284937184,0.01143377,17382.0,17381.0,0.8431367]
[1673284937720,0.01143377,17382.0,17381.0,1.8184767]
[1673284937980,0.05562364,17382.0,17381.0,1.2431367]
[1673284939038,0.01143377,17382.0,17381.0,1.2431367]
[1673284939281,0.18361574,17382.0,17381.0,1.2431367]
[1673284939574,0.01143377,17382.0,17381.0,1.2431367]
[1673284942080,0.01143377,17382.0,17381.0,2.3938167]
[1673284942330,0.01143377,17382.0,17381.0,2.7557327]
[1673284943125,0.01143377,17382.0,17381.0,2.72829502]
[1673284943644,0.01243377,17382.0,17381.0,2.86629502]
[1673284943904,0.01143377,17382.0,17381.0,2.72829502]
[1673284944173,0.01243377,17382.0,17381.0,3.33575127]
[1673284944693,0.01243377,17382.0,17381.0,2.86629502]
[1673284945443,0.01143377,17382.0,17381.0,2.86629502]
[1673284945694,0.01243377,17382.0,17381.0,2.86629502]
[1673284946260,0.01143377,17382.0,17381.0,2.86629502]
[1673284946508,0.19416132,17385.0,17382.0,0.93914632]
[1673284946790,0.19416132,17385.0,17383.0,0.927268]
[1673284947029,0.19416132,17385.0,17384.0,0.4]
[1673284947528,0.19425129,17385.0,17384.0,0.4]
[1673284947779,0.19516132,17385.0,17384.0,0.4]
[1673284948304,0.02297935,17385.0,17384.0,0.4]
[1673284948556,0.19516132,17385.0,17384.0,0.4]
[1673284949058,0.45344425,17385.0,17384.0,0.538]
[1673284949312,0.19516132,17385.0,17384.0,0.538]
[1673284950585,0.45344425,17385.0,17384.0,0.13806]
[1673284950842,1.24921747,17385.0,17384.0,0.13806]
[1673284951120,1.42144272,17385.0,17384.0,0.13806]
[1673284951406,1.42153269,17385.0,17384.0,0.13806]
[1673284951659,1.69754236,17385.0,17384.0,0.13806]
[1673284951924,1.35313514,17385.0,17384.0,0.13806]
[1673284952487,1.75330819,17385.0,17384.0,0.13806]
[1673284953538,1.75332758,17385.0,17384.0,0.13806]
[1673284953992,1.75332685,17385.0,17384.0,0.13806]
[1673284954264,1.3227065,17385.0,17384.0,0.13806]
[1673284954536,1.49458637,17385.0,17384.0,0.13806]
[1673284954779,1.26285751,17385.0,17384.0,6e-05]
[1673284955028,0.98872904,17385.0,17384.0,0.13806]
[1673284955786,0.81648595,17385.0,17384.0,0.13806]